bitfinex/quotes_BTCUSD_20250711
["timestamp","ask_amount","ask_price","bid_price","bid_amount"]
[1752200122658,0.00237844,116050.0,116040.0,1.11242163]
[1752200122862,0.03776844,116050.0,116040.0,0.92260483]
[1752200123258,0.03776844,116050.0,116040.0,0.92464483]
[1752200123662,0.03976844,116050.0,116040.0,0.92464483]
[1752200123840,0.04838474,116050.0,116040.0,0.92260483]
[1752200124069,0.03976844,116050.0,116040.0,0.92360483]
[1752200124444,0.25594018,116090.0,116040.0,0.92875483]
[1752200124647,0.0258472,116060.0,116050.0,0.4812094]
[1752200124866,0.01928134,116060.0,116050.0,0.4971749]
[1752200125203,0.03651335,116060.0,116050.0,0.4971749]
[1752200125595,0.04512958,116060.0,116050.0,0.1492855]
[1752200125809,0.03651335,116060.0,116050.0,0.0159655]
[1752200126013,0.03951335,116060.0,116050.0,0.1492455]
[1752200126220,0.03089727,116060.0,116050.0,0.1492455]
[1752200126921,0.03388735,116060.0,116050.0,0.1492455]
[1752200127121,0.02527134,116060.0,116050.0,0.1492455]
[1752200127571,0.05727134,116060.0,116050.0,0.1492455]
[1752200127770,0.0658872,116060.0,116050.0,0.1492455]
[1752200127971,0.07450321,116060.0,116050.0,0.1492455]
[1752200128175,0.0658872,116060.0,116050.0,0.1492455]
[1752200128734,0.05727127,116060.0,116050.0,0.14921333]
[1752200128942,0.04566556,116060.0,116050.0,0.14921333]
[1752200129208,0.04566556,116060.0,116050.0,0.49710273]
[1752200129526,0.04566556,116060.0,116050.0,0.49914273]
[1752200129802,0.05428127,116060.0,116050.0,0.49914273]
[1752200130000,0.04566556,116060.0,116050.0,0.49914273]
[1752200130214,0.03705,116060.0,116050.0,0.50225273]
[1752200130424,0.04566556,116060.0,116050.0,0.4863194]
[1752200130628,0.05428127,116060.0,116050.0,0.4863194]
[1752200130790,0.05428119,116060.0,116050.0,0.4863194]
[1752200131788,0.04566556,116060.0,116050.0,0.4863194]
[1752200131989,0.03705,116060.0,116050.0,0.4863194]
[1752200132198,0.02125,116060.0,116050.0,0.4863194]
[1752200132736,0.00605,116060.0,116050.0,0.4863194]
[1752200133913,0.03126563,116060.0,116050.0,0.4863194]
[1752200134334,0.03875,116060.0,116050.0,0.4832094]
[1752200134661,0.04736556,116060.0,116050.0,0.4832094]
[1752200135193,0.02265,116060.0,116050.0,0.4863194]
[1752200136241,0.03126556,116060.0,116050.0,0.4863194]
[1752200137821,0.004,116060.0,116050.0,0.4863194]
[1752200138222,0.0201,116060.0,116050.0,0.4863194]
[1752200138647,0.004,116060.0,116050.0,0.4863194]
[1752200140659,0.01261556,116060.0,116050.0,0.4863194]
[1752200140903,0.04789705,116060.0,116050.0,0.4863194]
[1752200141119,0.06319697,116060.0,116050.0,0.4863194]
[1752200141267,0.05458119,116060.0,116050.0,0.13843]
[1752200141469,0.04596556,116060.0,116050.0,0.13843]
[1752200141871,0.03735,116060.0,116050.0,0.13843]
[1752200142272,0.02,116060.0,116050.0,0.13843]
[1752200142688,0.004,116060.0,116050.0,0.4863194]
[1752200144373,0.0313,116070.0,116050.0,0.4863194]
[1752200144675,0.0313,116070.0,116060.0,0.3509994]
[1752200144991,0.03335,116070.0,116060.0,0.27222936]
[1752200145394,0.04196489,116070.0,116060.0,0.27222936]
[1752200145599,0.03635,116070.0,116060.0,0.27222936]
[1752200145992,0.03435,116070.0,116060.0,0.27222936]
[1752200146232,0.04696497,116070.0,116060.0,0.27222936]
[1752200146446,0.05558008,116070.0,116060.0,0.27222936]
[1752200146588,0.05458008,116070.0,116060.0,0.27222936]
[1752200146789,0.05458008,116070.0,116050.0,0.21026771]
[1752200146790,0.01723179,116060.0,116050.0,0.08009771]
[1752200146992,0.02431563,116060.0,116050.0,0.40542936]
[1752200147185,0.02636563,116060.0,116050.0,0.27222936]
[1752200147441,0.03498141,116060.0,116050.0,0.27222936]
[1752200147644,0.02636563,116060.0,116050.0,0.40542936]
[1752200147866,0.05158141,116060.0,116050.0,0.00515]
[1752200147999,0.05158141,116060.0,116050.0,0.13831]
[1752200148209,0.04296563,116060.0,116050.0,0.40538936]
[1752200148420,0.04296556,116060.0,116050.0,0.48237707]
[1752200148649,0.05158127,116060.0,116050.0,0.34921707]
[1752200148880,0.04296556,116060.0,116050.0,0.48237707]
[1752200149160,0.03435,116060.0,116050.0,0.48237707]
[1752200149366,0.03535,116060.0,116050.0,0.48237707]
[1752200149533,0.04396563,116060.0,116050.0,0.48237707]
[1752200149736,0.04396563,116060.0,116050.0,0.34921707]
[1752200149918,0.04396563,116060.0,116050.0,0.48237707]
[1752200150328,0.03535,116060.0,116050.0,0.48237707]
[1752200150733,0.0333,116060.0,116050.0,0.48237707]
[1752200150978,0.001,116060.0,116050.0,0.48237707]
[1752200151402,0.001,116060.0,116050.0,0.49889557]
[1752200151584,0.001,116060.0,116050.0,0.42168936]
[1752200151863,0.001,116060.0,116050.0,0.48259848]
[1752200152284,0.001,116060.0,116050.0,0.40538936]
[1752200152726,0.001,116060.0,116050.0,0.48258943]
[1752200152934,0.0312,116070.0,116050.0,0.48258943]
[1752200153137,0.0312,116070.0,116060.0,0.27019936]
[1752200153248,0.03324,116070.0,116060.0,0.27229936]
[1752200153451,0.04185482,116070.0,116060.0,0.27229936]
[1752200153896,0.03324,116070.0,116060.0,0.27229936]
[1752200154093,0.03424,116070.0,116060.0,0.27229936]
[1752200154305,0.03624,116070.0,116060.0,0.27229936]
[1752200154518,0.03624,116070.0,116060.0,0.34949943]
[1752200154723,0.03524,116070.0,116060.0,0.34949943]
[1752200154937,0.03724,116070.0,116060.0,0.34949943]
[1752200156106,0.04585482,116070.0,116060.0,0.08242007]
[1752200156333,0.05446979,116070.0,116060.0,0.34949943]
[1752200156550,0.05446971,116070.0,116060.0,0.34949943]
[1752200157216,0.05446979,116070.0,116060.0,0.34949943]
[1752200157651,0.05446971,116070.0,116060.0,0.34949943]
[1752200157926,0.06308482,116070.0,116060.0,0.34949943]
[1752200158073,0.06308475,116070.0,116060.0,0.48265943]
[1752200158281,0.05446971,116070.0,116060.0,0.48265943]
[1752200158491,0.03724,116070.0,116060.0,0.48265943]
[1752200158893,0.03724,116070.0,116060.0,0.48261943]
[1752200159627,0.0191,116070.0,116060.0,0.34949943]
[1752200159832,0.02771482,116070.0,116060.0,0.21554007]
[1752200160046,0.02771482,116070.0,116060.0,0.48261943]
[1752200160480,0.0191,116070.0,116060.0,0.48261943]
[1752200160935,0.02771482,116070.0,116060.0,0.48261943]
[1752200161161,0.06198482,116070.0,116060.0,0.48261943]
[1752200161381,0.06198475,116070.0,116060.0,0.48261943]
[1752200161586,0.04475482,116070.0,116060.0,0.48261943]
[1752200161793,0.04475482,116070.0,116060.0,0.40541936]
[1752200162001,0.05336986,116070.0,116060.0,0.40541936]
[1752200162209,0.05336979,116070.0,116060.0,0.40541936]
[1752200162425,0.06198483,116070.0,116060.0,0.40541936]
[1752200163052,0.06198483,116070.0,116060.0,0.48261943]
[1752200163258,0.04475482,116070.0,116060.0,0.48261943]
[1752200163500,0.05336979,116070.0,116060.0,0.48261943]
[1752200164465,0.0619849,116070.0,116060.0,0.48261943]
[1752200165718,0.07060068,116070.0,116060.0,0.08242007]
[1752200165922,0.06198527,116070.0,116060.0,0.34427943]
[1752200166136,0.22873056,116070.0,116060.0,0.21032007]
[1752200166287,0.05642075,116070.0,116060.0,0.13312]
[1752200166487,0.06503571,116070.0,116060.0,0.40019936]
[1752200166694,0.04475497,116070.0,116060.0,0.40019936]
[1752200167486,0.04475497,116070.0,116060.0,0.40229936]
[1752200167649,0.04475497,116070.0,116060.0,0.40541936]
[1752200168243,0.05336986,116070.0,116060.0,0.40541936]
[1752200168451,0.03614,116070.0,116060.0,0.40541936]
[1752200169299,0.03614,116070.0,116060.0,0.21554007]
[1752200169508,0.03614,116070.0,116060.0,0.40541936]
[1752200170070,0.02114,116070.0,116060.0,0.40541936]
[1752200170500,0.004,116070.0,116060.0,0.48261943]
[1752200173507,0.0193,116070.0,116060.0,0.48261943]
[1752200174101,0.004,116070.0,116060.0,0.48261943]
[1752200176743,0.0195,116070.0,116060.0,0.48261943]
[1752200178522,0.004,116070.0,116060.0,0.48261943]
[1752200179137,0.004,116070.0,116060.0,0.21554007]
[1752200179138,0.01261482,116070.0,116060.0,0.21554007]
[1752200179318,0.004,116070.0,116060.0,0.48261943]
[1752200181639,0.0202,116070.0,116060.0,0.48261943]
[1752200184108,0.004,116070.0,116060.0,0.48261943]
[1752200186849,0.004,116070.0,116060.0,0.40541936]
[1752200188099,0.004,116070.0,116060.0,0.40533936]
[1752200188655,0.004,116070.0,116060.0,0.27229936]
[1752200188856,0.004,116070.0,116060.0,0.40533936]
[1752200192040,0.004,116070.0,116060.0,0.48253943]
[1752200195934,0.004,116070.0,116060.0,0.21546007]
[1752200196155,0.004,116070.0,116060.0,0.48253943]
[1752200197262,0.0193,116070.0,116060.0,0.34949943]
[1752200197464,0.04391489,116070.0,116060.0,0.48249943]
[1752200197689,0.05252993,116070.0,116060.0,0.48249943]
[1752200197884,0.04391489,116070.0,116060.0,0.48249943]
[1752200198107,0.05252993,116070.0,116060.0,0.48249943]
[1752200198277,0.0353,116070.0,116060.0,0.48249943]
[1752200198927,0.0193,116070.0,116060.0,0.48249943]
[1752200199472,0.0193,116070.0,116060.0,0.21542007]
[1752200199689,0.0193,116070.0,116060.0,0.48249943]
[1752200201855,0.02791482,116070.0,116060.0,0.48249943]
[1752200202468,0.0193,116070.0,116060.0,0.48249943]
[1752200203081,0.0193,116070.0,116060.0,0.34949943]
[1752200203279,0.0193,116070.0,116060.0,0.48245943]
[1752200206223,0.02791482,116070.0,116060.0,0.34949943]
[1752200206422,0.02791482,116070.0,116060.0,0.48245943]
[1752200206631,0.0193,116070.0,116060.0,0.48245943]
[1752200207032,0.0193,116070.0,116060.0,0.21538007]
[1752200207377,0.0193,116070.0,116060.0,0.48245943]
[1752200207954,0.02791482,116070.0,116060.0,0.48245943]
[1752200208582,0.0193,116070.0,116060.0,0.48245943]
[1752200211890,0.004,116070.0,116060.0,0.48245943]
[1752200212342,0.0197,116070.0,116060.0,0.48245943]
[1752200213943,0.004,116070.0,116060.0,0.48245943]
[1752200222132,0.004,116070.0,116060.0,0.86766872]
[1752200222461,0.04051341,116090.0,116060.0,0.86626872]
[1752200222707,0.04912704,116090.0,116080.0,0.26707936]
[1752200222909,0.05109704,116090.0,116080.0,0.28312197]
[1752200223591,0.05309704,116090.0,116080.0,0.28312197]
[1752200223792,0.05109704,116090.0,116080.0,0.28312197]
[1752200223991,0.05971082,116090.0,116080.0,0.28361834]
[1752200224203,0.06471052,116090.0,116080.0,0.28361834]
[1752200224585,0.05609689,116090.0,116080.0,0.28866834]
[1752200224981,0.06471052,116090.0,116080.0,0.28866834]
[1752200225228,0.05609689,116090.0,116080.0,0.55570004]
[1752200225386,0.03987,116090.0,116080.0,0.55570004]
[1752200225774,0.03887,116090.0,116080.0,0.55570004]
[1752200225999,0.04748341,116090.0,116080.0,0.55570004]
[1752200226205,0.04851341,116090.0,116080.0,0.55570004]
[1752200226621,0.0399,116090.0,116080.0,0.55570004]
[1752200226821,0.04851333,116090.0,116080.0,0.55570004]
[1752200227158,0.04851341,116090.0,116080.0,0.55570004]
[1752200227336,0.04851333,116090.0,116080.0,0.55570004]
[1752200227586,0.06771037,116090.0,116080.0,0.41846834]
[1752200227771,0.07632422,116090.0,116080.0,0.68550004]
[1752200227972,0.07632415,116090.0,116080.0,0.68550004]
[1752200228478,0.06771037,116090.0,116080.0,0.68550004]
[1752200228840,0.0677103,116090.0,116080.0,0.68550004]
[1752200229020,0.05909674,116090.0,116080.0,0.68854004]
[1752200229224,0.05048333,116090.0,116080.0,0.68854004]
[1752200229434,0.03201341,116090.0,116080.0,0.68854004]
[1752200229755,0.0234,116090.0,116080.0,0.68854004]
[1752200230113,0.03201341,116090.0,116080.0,0.68851837]
[1752200230315,0.0234,116090.0,116080.0,0.68851837]
[1752200230843,0.03201333,116090.0,116080.0,0.68851837]
[1752200231260,0.008,116090.0,116080.0,0.68851837]
[1752200232993,0.008,116090.0,116080.0,0.70511837]
[1752200233190,0.008,116090.0,116080.0,0.72111837]
[1752200233690,0.008,116090.0,116080.0,0.68904977]
[1752200234107,0.008,116090.0,116080.0,0.67244977]
[1752200234355,0.008,116090.0,116080.0,0.70314977]
[1752200234581,0.008,116090.0,116080.0,1.07167285]
[1752200234793,0.008,116090.0,116080.0,0.55567122]
[1752200234994,0.50672293,116090.0,116080.0,0.01655782]
[1752200235257,0.66915931,116090.0,116080.0,0.01655782]
[1752200235497,0.40212761,116090.0,116080.0,0.01655782]
[1752200235716,0.31669768,116090.0,116080.0,0.01655782]
[1752200235929,0.31669768,116090.0,116080.0,0.28358952]
[1752200236164,0.31669768,116090.0,116080.0,0.26752807]
[1752200236382,0.17888004,116090.0,116080.0,0.26752807]
[1752200236602,0.14903104,116090.0,116080.0,0.26752807]
[1752200236837,0.14041711,116090.0,116080.0,0.26752807]
[1752200237065,0.13722711,116090.0,116080.0,0.00049637]
[1752200237273,0.14584104,116090.0,116080.0,0.13329637]
[1752200237507,0.15545504,116090.0,116080.0,0.13329637]
[1752200237724,0.14684096,116090.0,116080.0,0.13329637]
[1752200238595,0.19267166,116090.0,116080.0,0.13329637]
[1752200238798,0.19586166,116090.0,116080.0,0.13329637]
[1752200239001,0.15864489,116090.0,116080.0,0.13329637]
[1752200239208,0.16725889,116090.0,116080.0,0.13329637]
[1752200239447,0.15864489,116090.0,116080.0,0.13329637]
[1752200239685,0.13822704,116090.0,116080.0,0.13329637]
[1752200239944,0.12961341,116090.0,116080.0,0.13329637]
[1752200240207,0.13822704,116090.0,116080.0,0.4003602]
[1752200240694,0.14684074,116090.0,116080.0,0.4003602]
[1752200240932,0.15545452,116090.0,116080.0,0.4003602]
[1752200241124,0.13822704,116090.0,116080.0,0.4003602]
[1752200241242,0.12099993,116090.0,116080.0,0.4003602]
[1752200241449,0.0186,116090.0,116080.0,0.4054902]
[1752200241650,0.002,116090.0,116080.0,0.4054902]
[1752200247334,0.002,116090.0,116080.0,0.4368902]
[1752200247759,0.002,116090.0,116080.0,0.51409027]
[1752200253568,0.002,116090.0,116080.0,0.49869027]
[1752200254323,0.002,116090.0,116080.0,0.51529027]
[1752200254692,0.002,116090.0,116080.0,0.51517027]
[1752200255696,0.002,116090.0,116080.0,0.54323945]
[1752200256408,0.002,116090.0,116080.0,0.62866938]
[1752200256978,0.002,116090.0,116080.0,0.6006002]
[1752200257196,0.001,116090.0,116080.0,0.6006002]
[1752200257746,0.0002,116100.0,116080.0,0.6006002]
[1752200257897,0.0002,116100.0,116090.0,0.26706383]
[1752200258117,0.0002,116100.0,116090.0,0.27219383]
[1752200258460,0.0002,116100.0,116090.0,0.33388694]
[1752200258668,0.0002,116100.0,116090.0,0.27219383]
[1752200259055,0.0012,116100.0,116090.0,0.27219383]
[1752200260721,0.0012,116100.0,116090.0,0.30399383]
[1752200261137,0.0022,116100.0,116090.0,0.30399383]
[1752200261603,0.0022,116100.0,116090.0,0.3811939]
[1752200261956,0.0002,116100.0,116090.0,0.3811939]
[1752200262461,0.0002,116100.0,116090.0,0.30399383]
[1752200262595,0.0002,116100.0,116090.0,0.3811939]
[1752200263200,0.0002,116100.0,116090.0,0.64825773]
[1752200263599,0.0002,116100.0,116090.0,1.02262738]
[1752200263797,4.743e-05,116100.0,116090.0,1.02262738]
[1752200264000,4.743e-05,116100.0,116090.0,1.13109899]
[1752200264220,0.17065844,116130.0,116090.0,1.27157911]
[1752200264425,0.20315844,116130.0,116120.0,0.3286767]
[1752200264622,0.20525844,116130.0,116120.0,0.3286767]
[1752200264793,0.20525844,116130.0,116120.0,0.4613167]
[1752200265242,0.20525844,116130.0,116120.0,0.4664467]
[1752200265622,0.20315844,116130.0,116120.0,0.46694307]
[1752200265864,0.18725844,116130.0,116120.0,0.46694307]
[1752200266476,0.17065844,116130.0,116120.0,0.46694307]
[1752200267149,0.18725844,116130.0,116120.0,0.46690307]
[1752200267556,0.20255844,116130.0,116120.0,0.46690307]
[1752200268794,0.17065844,116130.0,116120.0,0.46690307]
[1752200276646,0.18625844,116130.0,116120.0,0.46682307]
[1752200277689,0.17065844,116130.0,116120.0,0.46682307]
[1752200278407,0.17065844,116130.0,116120.0,0.7651869]
[1752200278570,0.17065844,116130.0,116120.0,0.85061683]
[1752200279149,0.17065844,116130.0,116120.0,0.85047389]
[1752200279356,0.17065844,116130.0,116120.0,0.79000396]
[1752200279543,0.17065844,116130.0,116120.0,1.13200396]
[1752200279750,0.17065844,116130.0,116120.0,1.13000396]
[1752200279965,0.17065844,116130.0,116120.0,0.42364246]
[1752200280181,0.18685844,116130.0,116120.0,0.82322629]
[1752200280452,0.17065844,116130.0,116120.0,0.6136902]
[1752200280654,0.17065844,116130.0,116120.0,0.7462102]
[1752200281075,0.17065844,116130.0,116120.0,0.7482102]
[1752200281623,0.17065844,116130.0,116120.0,0.7472102]
[1752200282805,0.17065844,116130.0,116120.0,0.7482102]
[1752200285329,0.17065844,116130.0,116120.0,0.82522629]
[1752200287474,0.17065844,116130.0,116120.0,1.20932005]
[1752200287623,0.05447187,116130.0,116120.0,1.20932005]
[1752200287830,0.05447187,116130.0,116120.0,1.13230396]
[1752200290010,0.05447187,116130.0,116120.0,1.13230396]
[1752200290640,0.05447187,116130.0,116120.0,1.31315127]
[1752200290844,0.05447187,116130.0,116120.0,1.20932005]
[1752200291043,0.05447187,116130.0,116120.0,1.24376183]
[1752200291254,0.05447187,116130.0,116120.0,1.25237353]
[1752200291617,0.05447187,116130.0,116120.0,1.24376183]
[1752200291828,0.05447187,116130.0,116120.0,1.23515005]
[1752200297712,0.04414421,116130.0,116120.0,1.15813396]
[1752200297938,0.04414421,116130.0,116120.0,1.26660557]
[1752200306302,0.04414421,116130.0,116120.0,1.27521735]
[1752200306543,0.04414421,116130.0,116120.0,1.26660557]
[1752200307837,0.03381671,116130.0,116120.0,1.23484557]
[1752200311009,0.03381671,116130.0,116120.0,1.10248557]
[1752200311220,0.03381671,116130.0,116120.0,1.20901557]
[1752200311663,0.03381671,116130.0,116120.0,1.24922735]
[1752200311864,0.03381671,116130.0,116120.0,1.13214396]
[1752200312477,0.03381671,116130.0,116120.0,1.14075574]
[1752200312801,0.03381671,116130.0,116120.0,1.13214396]
[1752200314146,0.03381671,116130.0,116120.0,1.16658474]
[1752200314388,0.03381671,116130.0,116120.0,1.15797296]
[1752200314591,0.00900565,116130.0,116120.0,1.3474319]
[1752200314854,0.00900565,116130.0,116120.0,1.4638849]
[1752200315061,0.00900565,116130.0,116120.0,1.44666187]
[1752200315265,0.00900565,116130.0,116120.0,1.27442611]
[1752200315476,0.00900565,116130.0,116120.0,1.28303766]
[1752200315686,0.00900565,116130.0,116120.0,1.75410069]
[1752200315897,0.00039993,116130.0,116120.0,1.80410069]
[1752200316309,6e-05,116150.0,116140.0,0.60706383]
[1752200316526,6e-05,116150.0,116140.0,1.20119386]
[1752200316736,6e-05,116150.0,116140.0,1.20422386]
[1752200316941,6e-05,116150.0,116140.0,1.22144437]
[1752200317144,6e-05,116150.0,116140.0,1.20422386]
[1752200317335,6e-05,116150.0,116140.0,1.22026922]
[1752200317541,6e-05,116150.0,116140.0,1.14322295]
[1752200317750,0.00449489,116160.0,116140.0,1.14322295]
[1752200317924,0.04599489,116170.0,116150.0,0.82895494]
[1752200318133,0.04599489,116170.0,116160.0,0.66648766]
[1752200318383,0.04802489,116170.0,116160.0,0.68253302]
[1752200318622,0.04802489,116170.0,116160.0,1.11302295]
[1752200318830,0.04802489,116170.0,116160.0,0.77302295]
[1752200319041,0.04802489,116170.0,116160.0,0.77301516]
[1752200319450,0.04802489,116170.0,116160.0,0.77351153]
[1752200319670,0.05002489,116170.0,116160.0,0.77351153]
[1752200321135,0.05002489,116170.0,116160.0,0.77048153]
[1752200321456,0.05002489,116170.0,116160.0,0.5506616]
[1752200321672,0.05307489,116170.0,116160.0,0.41591777]
[1752200322121,0.05002489,116170.0,116160.0,0.41591777]
[1752200322770,0.05002489,116170.0,116160.0,0.14885394]
[1752200322995,0.06168237,116170.0,116160.0,0.41599777]
[1752200323200,0.05307489,116170.0,116160.0,0.41599777]
[1752200323415,0.06268229,116170.0,116160.0,0.41599777]
[1752200323705,0.05407489,116170.0,116160.0,0.41599777]
[1752200324499,0.05407489,116170.0,116160.0,0.41597501]
[1752200325046,0.05407489,116170.0,116160.0,0.41597381]
[1752200325472,0.06268229,116170.0,116160.0,0.01650998]
[1752200325658,0.06268237,116170.0,116160.0,0.14890998]
[1752200325910,0.07128991,116170.0,116160.0,0.14894998]
[1752200326109,0.0971136,116170.0,116160.0,0.14894998]
[1752200326309,0.08850553,116170.0,116160.0,0.01650998]
[1752200326526,0.08850553,116170.0,116160.0,0.14894998]
[1752200326728,0.07989798,116170.0,116160.0,0.14894998]
[1752200326924,0.16532791,116170.0,116160.0,0.01650998]
[1752200327125,0.16532791,116170.0,116160.0,0.14894998]
[1752200327341,0.16532791,116170.0,116160.0,0.14895294]
[1752200327723,0.15672014,116170.0,116160.0,0.14895294]
[1752200327918,0.15671984,116170.0,116160.0,0.14895294]
[1752200328191,0.05407489,116170.0,116160.0,0.41601677]
[1752200328334,0.05102489,116170.0,116160.0,0.6830806]
[1752200328519,0.05102489,116170.0,116160.0,0.41601677]
[1752200328723,0.05102489,116170.0,116160.0,0.49305412]
[1752200328978,0.05102489,116170.0,116160.0,0.76517795]
[1752200329152,0.05102489,116170.0,116160.0,0.6881406]
[1752200329354,0.05102489,116170.0,116160.0,0.6851106]
[1752200329578,0.05102489,116170.0,116160.0,0.76214795]
[1752200332415,0.05102489,116170.0,116160.0,0.76011795]
[1752200332624,0.05102489,116170.0,116160.0,0.49305412]
[1752200333273,0.05102489,116170.0,116160.0,0.36061412]
[1752200333527,0.05102489,116170.0,116160.0,0.49313412]
[1752200333733,0.05415489,116170.0,116160.0,0.49313412]
[1752200334369,0.05415489,116170.0,116160.0,0.41609677]
[1752200335126,0.05415489,116170.0,116160.0,0.49313412]
[1752200336275,0.05415489,116170.0,116160.0,0.41609677]
[1752200336478,0.05102489,116170.0,116160.0,0.41609677]
[1752200337139,0.05102489,116170.0,116160.0,0.6831606]
[1752200337804,0.04069921,116170.0,116160.0,0.6831606]
[1752200338409,0.04069921,116170.0,116160.0,0.6831589]
[1752200339454,0.04069921,116170.0,116160.0,0.76019625]
[1752200339686,0.04069921,116170.0,116160.0,0.22606859]
[1752200340080,0.04069921,116170.0,116160.0,0.76019625]
[1752200340282,0.04069921,116170.0,116160.0,0.49313242]
[1752200342715,0.04069921,116170.0,116160.0,0.22606859]
[1752200342916,0.04069921,116170.0,116160.0,0.49313242]
[1752200343346,0.04069921,116170.0,116160.0,0.49314274]
[1752200343988,0.04069921,116170.0,116160.0,0.22607891]
[1752200344195,0.04069921,116170.0,116160.0,0.49314274]
[1752200345174,0.04069921,116170.0,116160.0,0.76020657]
[1752200345945,0.04069921,116170.0,116160.0,0.22607891]
[1752200346169,0.04069921,116170.0,116160.0,0.76020657]
[1752200346617,0.04069921,116170.0,116160.0,0.62768657]
[1752200346825,0.04069921,116170.0,116160.0,0.49294274]
[1752200348811,0.04069921,116170.0,116160.0,0.49295174]
[1752200349026,0.05243669,116170.0,116160.0,0.09356791]
[1752200349236,0.05243669,116170.0,116160.0,0.22592791]
[1752200349665,0.06104431,116170.0,116160.0,0.22592791]
[1752200349880,0.05243669,116170.0,116160.0,0.22592791]
[1752200350111,0.05791431,116170.0,116160.0,0.22592791]
[1752200350320,0.04930669,116170.0,116160.0,0.22592791]
[1752200350734,0.0774781,116170.0,116160.0,0.09356791]
[1752200350945,0.07825993,116170.0,116160.0,0.14889056]
[1752200351081,0.59430769,116170.0,116160.0,0.01661056]
[1752200351289,0.32724386,116170.0,116160.0,0.01661056]
[1752200351530,0.31863631,116170.0,116160.0,0.01661056]
[1752200352571,0.31863631,116170.0,116160.0,0.13297637]
[1752200354101,0.31002854,116170.0,116160.0,0.13297637]
[1752200354304,0.31002854,116170.0,116160.0,0.13293637]
[1752200356798,0.14647432,116170.0,116160.0,0.13293637]
[1752200357004,0.15508224,116170.0,116160.0,0.13243637]
[1752200357207,0.15508217,116170.0,116160.0,0.13243637]
[1752200357419,0.14647432,116170.0,116160.0,0.13243637]
[1752200357602,0.15508217,116170.0,116160.0,0.13243637]
[1752200357796,0.13786662,116170.0,116160.0,0.13243637]
[1752200358003,0.13786654,116170.0,116160.0,0.13243637]
[1752200358209,0.14638808,116170.0,116160.0,0.13243637]
[1752200358897,0.14638808,116170.0,116160.0,0.13223636]
[1752200359418,0.14638801,116170.0,116160.0,0.13223636]
[1752200360006,0.13778046,116170.0,116160.0,0.13223636]
[1752200360232,0.14638808,116170.0,116160.0,0.13223636]
[1752200360648,0.14638801,116170.0,116160.0,0.13223636]
[1752200361059,0.15499563,116170.0,116160.0,0.13223636]
[1752200361270,0.14638801,116170.0,116160.0,0.13223636]
[1752200361497,0.13778046,116170.0,116160.0,0.13223636]
[1752200361916,0.14638808,116170.0,116160.0,0.13223636]
[1752200362121,0.14638801,116170.0,116160.0,0.13223636]
[1752200362545,0.15499571,116170.0,116160.0,0.13223636]
[1752200362769,0.18857061,116170.0,116160.0,0.13223636]
[1752200362978,0.17996291,116170.0,116160.0,0.13223636]
[1752200363150,0.18857061,116170.0,116160.0,0.13223636]
[1752200363386,0.15499571,116170.0,116160.0,0.13223636]
[1752200363807,0.14638801,116170.0,116160.0,0.13223636]
[1752200364087,0.15499571,116170.0,116160.0,0.13223636]
[1752200364793,0.14638801,116170.0,116160.0,0.13223636]
[1752200365042,0.0155,116160.0,116140.0,0.42025735]
[1752200365258,0.0306,116160.0,116150.0,0.13236]
[1752200365461,0.03276,116160.0,116150.0,0.13236]
[1752200365673,0.04136814,116160.0,116150.0,0.13236]
[1752200365880,0.04136814,116160.0,116150.0,0.39942383]
[1752200366085,0.03276,116160.0,116150.0,0.39942383]
[1752200366519,0.04136814,116160.0,116150.0,0.39942383]
[1752200366735,0.03276,116160.0,116150.0,0.39942383]
[1752200366954,0.03376,116160.0,116150.0,0.39942383]
[1752200368694,0.04236814,116160.0,116150.0,0.39942383]
[1752200368893,0.03376,116160.0,116150.0,0.39942383]
[1752200369324,0.0154,116150.0,116140.0,0.08175458]
[1752200369458,0.01756,116150.0,116140.0,0.21621458]
[1752200370067,0.03628941,116150.0,116140.0,0.21621458]
[1752200370265,0.03628941,116150.0,116140.0,0.48327841]
[1752200370695,0.04489829,116150.0,116140.0,0.48327841]
[1752200370894,0.08118553,116150.0,116140.0,0.07853458]
[1752200371139,0.63490811,116150.0,116140.0,0.00149723]
[1752200371290,0.6176902,116150.0,116140.0,0.13381723]
[1752200371490,0.6176902,116150.0,116140.0,0.00249723]
[1752200371759,0.60908094,116150.0,116140.0,0.13381723]
[1752200371978,0.16000748,116150.0,116140.0,0.13381723]
[1752200372186,0.13957934,116150.0,116140.0,0.39988106]
[1752200372387,0.14057934,116150.0,116140.0,0.39988106]
[1752200372776,0.14257934,116150.0,116140.0,0.13281723]
[1752200373195,0.05714941,116150.0,116140.0,0.39988106]
[1752200373419,0.05714941,116150.0,116140.0,0.40202106]
[1752200375116,0.06575829,116150.0,116140.0,0.40202106]
[1752200375330,0.07436732,116150.0,116140.0,0.39988106]
[1752200375778,0.07436732,116150.0,116140.0,0.13281723]
[1752200376404,0.06575829,116150.0,116140.0,0.13281723]
[1752200376601,0.07436725,116150.0,116140.0,0.13281723]
[1752200377066,0.05498941,116150.0,116140.0,0.40506106]
[1752200377275,0.03928941,116150.0,116140.0,0.40506106]
[1752200377481,0.04789844,116150.0,116140.0,0.40506106]
[1752200377680,0.03928941,116150.0,116140.0,0.40506106]
[1752200377793,0.04789837,116150.0,116140.0,0.40506106]
[1752200377993,0.02388941,116150.0,116140.0,0.40506106]
[1752200378400,0.03249829,116150.0,116140.0,0.40506106]
[1752200378656,0.05610725,116150.0,116140.0,0.40506106]
[1752200378984,0.04749829,116150.0,116140.0,0.40506106]
[1752200379637,0.03888941,116150.0,116140.0,0.48209841]
[1752200379816,0.02388941,116150.0,116140.0,0.48209841]
[1752200381419,0.02388941,116150.0,116140.0,0.40506106]
[1752200382236,0.0602816,116150.0,116140.0,0.13799723]
[1752200382428,0.08429078,116150.0,116140.0,0.40506106]
[1752200382637,0.07444762,116150.0,116140.0,0.40506106]
[1752200383037,0.07444762,116150.0,116140.0,0.13799723]
[1752200383244,0.26385749,116150.0,116140.0,0.00049723]
[1752200383456,0.07767762,116150.0,116140.0,0.13285723]
[1752200383645,0.0776777,116150.0,116140.0,0.13285723]
[1752200383851,0.08628703,116150.0,116140.0,0.13285723]
[1752200384217,0.06583844,116150.0,116140.0,0.13285723]
[1752200384458,0.05722941,116150.0,116140.0,0.40510106]
[1752200384673,0.02388941,116150.0,116140.0,0.40510106]
[1752200385079,0.02388941,116150.0,116140.0,0.13803723]
[1752200385285,0.02388941,116150.0,116140.0,0.40510106]
[1752200386101,0.02388941,116150.0,116140.0,0.13803723]
[1752200386305,0.02388941,116150.0,116140.0,0.40510106]
[1752200386724,0.003,116150.0,116140.0,0.42150106]
[1752200386927,0.003,116150.0,116140.0,0.43730106]
[1752200387187,0.003,116150.0,116140.0,0.42150106]
[1752200387808,0.003,116150.0,116140.0,0.49853841]
[1752200387987,0.003,116150.0,116140.0,0.42150106]
[1752200388954,0.003,116150.0,116140.0,0.51483841]